bitfinex/quotes_SOLUSD_20240607
["timestamp","ask_amount","ask_price","bid_price","bid_amount"]
[1717760911685,2.1496,172.13,172.1,2.1498]
[1717760911900,7.31,172.11,172.1,2.1498]
[1717760912259,7.31,172.11,172.09,2.1499]
[1717760912683,7.31,172.11,172.1,2.1499]
[1717760913037,7.31,172.11,172.1,2.1498]
[1717760913691,7.31,172.11,172.07,6.4507]
[1717760914002,7.31,172.11,172.07,10.7511]
[1717760914172,7.31,172.11,172.09,2.15]
[1717760914496,7.31,172.1,172.07,10.7512]
[1717760914659,7.31,172.11,172.09,2.1499]
[1717760914873,7.31,172.11,172.1,2.1499]
[1717760915295,7.31,172.13,172.11,2.1497]
[1717760916121,7.31,172.12,172.1,2.1498]
[1717760916266,0.8039167,172.17,172.13,2.1494]
[1717760916583,7.31,172.14,172.1,10.7492]
[1717760916765,7.31,172.15,172.1,12.657]
[1717760918404,7.31,172.14,172.1,12.657]
[1717760919587,7.31,172.14,172.12,2.1496]
[1717760919976,7.31,172.13,172.12,2.1496]
[1717760922074,2.1491,172.16,172.12,2.1496]
[1717760922285,7.31,172.13,172.1,6.4497]
[1717760922490,7.31,172.14,172.1,12.4832]
[1717760922705,7.31,172.15,172.13,2.1494]
[1717760922881,2.9530167,172.17,172.14,2.1494]
[1717760923082,7.31,172.15,172.14,2.1494]
[1717760923970,7.31,172.15,172.13,2.1494]
[1717760924886,7.31,172.14,172.12,2.1495]
[1717760925891,2.1493,172.15,172.11,2.1497]
[1717760926079,8.1139167,172.17,172.06,13.6324]
[1717760926080,7.31,172.12,172.06,6.3224]
[1717760926399,2.1493,172.15,172.11,2.1497]
[1717760926592,2.1493,172.15,172.12,2.1496]
[1717760926894,7.31,172.13,172.12,2.1496]
[1717760927090,7.31,172.13,172.07,4.3003]
[1717760927281,4.2986,172.15,172.09,2.15]
[1717760927282,10.7465,172.15,172.09,2.15]
[1717760927481,7.31,172.1,172.09,2.15]
[1717760930119,7.31,172.11,172.1,2.1498]
[1717760931099,7.31,172.11,172.09,2.1499]
[1717760931596,7.31,172.11,172.07,10.7513]
[1717760931899,7.31,172.11,172.1,2.1499]
[1717760935302,7.31,172.12,172.1,2.1499]
[1717760937603,2.1494,172.14,172.1,2.1499]
[1717760937808,7.31,172.12,172.1,2.1499]
[1717760938504,7.31,172.12,172.09,2.1499]
[1717760938894,7.31,172.11,172.09,2.1499]
[1717760939689,7.31,172.11,172.08,2.1501]
[1717760940410,7.31,172.11,172.06,12.8242]
[1717760941291,7.31,172.11,172.1,2.1499]
[1717760941501,7.31,172.11,172.09,2.1499]
[1717760943227,9.4598,172.11,172.07,2.1502]
[1717760943397,7.31,172.08,172.07,2.1502]
[1717760946700,2.1498,172.11,172.07,2.1502]
[1717760946896,10.7477,172.13,172.07,2.1502]
[1717760946897,7.31,172.08,172.07,2.1502]
[1717760947103,7.31,172.08,172.06,2.1503]
[1717760947323,7.31,172.07,172.05,2.1504]
[1717760947524,7.31,172.07,172.06,2.1504]
[1717760948541,2.1499,172.1,172.04,4.3013]
[1717760948728,3.8425,172.14,172.02,27.31]
[1717760948890,2.1494,172.14,172.08,4.3002]
[1717760949095,2.1494,172.14,172.1,2.1498]
[1717760949494,7.31,172.11,172.1,2.1498]
[1717760949709,2.1494,172.14,172.1,2.1498]
[1717760949902,7.31,172.11,172.1,2.1498]
[1717760950218,7.31,172.12,172.11,2.1497]
[1717760950513,2.9530167,172.17,172.13,2.1494]
[1717760950694,2.9530167,172.17,172.1,10.7493]
[1717760950695,7.31,172.14,172.1,10.7493]
[1717760950897,2.9530167,172.17,172.1,10.7493]
[1717760951104,7.31,172.14,172.1,16.83]
[1717760953124,7.31,172.13,172.1,10.3803]
[1717760953433,7.31,172.13,172.1,4.2996]
[1717760953626,7.31,172.13,172.12,2.1496]
[1717760954820,2.1491,172.16,172.12,2.1496]
[1717760956751,32.1930167,172.17,172.1,10.7493]
[1717760957023,30.0439167,172.17,172.14,2.1493]
[1717760957597,2.1492,172.16,172.12,2.1496]
[1717760957798,7.31,172.13,172.12,2.1496]
[1717760958858,7.31,172.13,172.11,2.1497]
[1717760959005,2.1492,172.16,172.12,2.1496]
[1717760959214,7.31,172.13,172.12,2.1496]
[1717760961742,2.1492,172.16,172.12,2.1496]
[1717760961928,7.31,172.13,172.1,10.7493]
[1717760962146,2.1492,172.16,172.12,2.1496]
[1717760962431,7.31,172.13,172.12,2.1496]
[1717760963803,0.8039167,172.17,172.11,4.2994]
[1717760964012,0.8039167,172.17,172.14,2.1493]
[1717760964203,7.31,172.15,172.14,2.1493]
[1717760964405,0.8039167,172.17,172.13,2.1494]
[1717760964637,7.31,172.14,172.13,2.1494]
[1717760967443,0.8039167,172.17,172.13,2.1494]
[1717760967752,7.31,172.15,172.13,2.1494]
[1717760968943,7.31,172.15,172.14,2.1494]
[1717760969140,2.9529167,172.17,172.13,2.1494]
[1717760969448,7.31,172.15,172.13,2.1494]
[1717760970159,7.31,172.15,172.14,2.1494]
[1717760970330,0.8039167,172.17,172.16,12.8948]
[1717760970850,0.8039167,172.17,172.16,6.4474]
[1717760971241,8.1139167,172.17,172.16,2.1491]
[1717760971426,0.8039167,172.17,172.16,2.1491]
[1717760971623,8.1139167,172.17,172.16,2.1491]
[1717760972052,8.1139167,172.17,172.16,6.4474]
[1717760972350,0.8039167,172.17,172.16,6.4474]
[1717760973051,0.8039167,172.17,172.16,12.8948]
[1717760974240,0.8039167,172.17,172.16,19.3488]
[1717760976467,0.8039167,172.17,172.16,34.5979]
[1717760977130,0.8039167,172.17,172.16,19.3488]
[1717760977330,0.8039167,172.17,172.16,12.8948]
[1717760977568,0.8039167,172.17,172.16,6.4474]
[1717760977973,8.1139167,172.17,172.15,2.1492]
[1717760978268,7.31,172.16,172.13,4.299]
[1717760979160,0.8039167,172.17,172.16,2.1491]
[1717760979359,8.1139167,172.17,172.16,2.1491]
[1717760979540,0.8039167,172.17,172.16,2.1491]
[1717760980053,8.1139167,172.17,172.16,2.1491]
[1717760982530,0.8039167,172.17,172.16,2.1491]
[1717760983541,0.8039167,172.17,172.16,6.4474]
[1717760983729,0.8039167,172.17,172.16,12.8948]
[1717760988861,0.8039167,172.17,172.16,6.4474]
[1717760990260,0.8039167,172.17,172.16,12.8948]
[1717760990869,0.8039167,172.17,172.16,36.0352]
[1717760991055,0.8039167,172.17,172.16,56.0352]
[1717760994448,0.8039167,172.17,172.16,39.505]
[1717760999995,0.8039167,172.17,172.16,12.8948]
[1717761000274,0.8039167,172.17,172.16,2.1491]
[1717761000482,8.1139167,172.17,172.16,2.1491]
[1717761001645,0.8039167,172.17,172.16,2.1491]
[1717761004374,8.1139167,172.17,172.16,2.1491]
[1717761004673,0.8039167,172.17,172.16,2.1491]
[1717761005955,0.8039167,172.17,172.16,6.4474]
[1717761006166,0.8039167,172.17,172.16,12.8948]
[1717761007262,0.8039167,172.17,172.16,6.4474]
[1717761008249,0.8039167,172.17,172.16,2.1491]
[1717761011577,0.8039167,172.17,172.16,6.4474]
[1717761013264,0.8039167,172.17,172.16,12.8948]
[1717761015873,0.8039167,172.17,172.16,6.4474]
[1717761016461,0.8039167,172.17,172.16,2.1491]
[1717761019372,8.1139167,172.17,172.16,2.1491]
[1717761021966,8.1139167,172.17,172.16,6.4474]
[1717761021967,0.8039167,172.17,172.16,6.4474]
[1717761023082,0.8039167,172.17,172.16,12.8948]
[1717761024475,0.8039167,172.17,172.16,43.3148]
[1717761024668,0.8039167,172.17,172.16,108.3148]
[1717761024885,0.8039167,172.17,172.16,101.0048]
[1717761025087,0.8039167,172.17,172.16,108.3148]
[1717761026772,0.8039167,172.17,172.16,56.0048]
[1717761026985,0.8039167,172.17,172.16,46.6689]
[1717761027701,0.8039167,172.17,172.16,39.3589]
[1717761030173,0.8039167,172.17,172.16,32.8948]
[1717761030375,0.8039167,172.17,172.16,40.2048]
[1717761032407,0.8039167,172.17,172.16,32.8948]
[1717761032692,0.8039167,172.17,172.16,40.2048]
[1717761033403,0.8039167,172.17,172.16,46.8667]
[1717761033703,0.8039167,172.17,172.16,12.8948]
[1717761034369,0.8039167,172.17,172.16,6.4474]
[1717761034877,0.8039167,172.17,172.16,2.1491]
[1717761035102,8.1139167,172.17,172.15,2.1492]
[1717761035512,8.1139167,172.17,172.13,10.7476]
[1717761035721,8.1139167,172.17,172.16,2.1491]
[1717761035876,0.8039167,172.17,172.15,2.1492]
[1717761036082,0.8039167,172.17,172.16,2.1491]
[1717761036288,0.8039167,172.17,172.13,4.2989]
[1717761037496,8.1139167,172.17,172.13,10.7474]
[1717761037814,8.1139167,172.17,172.16,2.1491]
[1717761038183,8.1139167,172.17,172.15,2.1492]
[1717761038632,0.8039167,172.17,172.15,2.1492]
[1717761039191,0.8039167,172.17,172.13,4.2989]
[1717761039706,0.8039167,172.17,172.16,2.1491]
[1717761041012,0.8039167,172.17,172.15,2.1492]
[1717761041186,0.8039167,172.17,172.16,2.1491]
[1717761041388,0.8039167,172.17,172.15,2.1492]
[1717761042807,8.1139167,172.17,172.15,2.1492]
[1717761043099,0.8039167,172.17,172.16,2.1491]
[1717761045019,8.1139167,172.17,172.15,2.1492]
[1717761045399,0.8039167,172.17,172.15,2.1492]
[1717761045596,8.1139167,172.17,172.15,2.1492]
[1717761047309,0.8039167,172.17,172.16,2.1491]
[1717761062439,0.8039167,172.17,172.15,2.1492]
[1717761066829,0.8039167,172.17,172.13,18.0575]
[1717761067541,0.8039167,172.17,172.13,13.7585]
[1717761067931,0.8039167,172.17,172.13,6.4485]
[1717761068131,0.8039167,172.17,172.13,13.7585]
[1717761069321,0.8039167,172.17,172.14,6.4482]
[1717761069531,0.8039167,172.17,172.16,2.1491]
[1717761070348,0.8039167,172.17,172.14,4.2988]
[1717761070542,4.6464167,172.17,172.12,4.2991]
[1717761070727,7.31,172.15,172.12,2.1496]
[1717761070925,9.4594,172.14,172.1,2.1498]
[1717761071155,2.1495,172.13,172.1,2.1498]
[1717761071452,9.4594,172.14,172.1,2.1498]
[1717761071620,9.4594,172.14,172.11,2.1497]
[1717761071818,7.31,172.13,172.08,10.7505]
[1717761072243,11.1525,172.13,172.1,2.1498]
[1717761072431,7.31,172.13,172.1,2.1498]
[1717761072638,2.1494,172.14,172.11,2.1497]
[1717761072941,7.31,172.13,172.11,2.1497]
[1717761073454,7.31,172.13,172.1,2.1498]
[1717761073636,7.31,172.13,172.11,2.1497]
[1717761075440,7.31,172.13,172.06,7.31]
[1717761075441,2.1491,172.16,172.12,2.1496]
[1717761075651,7.31,172.13,172.12,2.1496]
[1717761075857,7.31,172.15,172.13,2.1495]
[1717761076187,3.8425,172.15,172.02,6.175]
[1717761076335,7.31,172.09,172.08,2.1501]
[1717761077683,7.31,172.11,172.1,2.1498]
[1717761078544,7.31,172.11,172.06,10.7518]
[1717761078857,7.31,172.1,172.06,10.7518]
[1717761079229,7.31,172.1,172.07,4.3005]
[1717761079434,7.31,172.11,172.07,4.3005]
[1717761080378,7.31,172.12,172.07,10.7512]
[1717761080561,7.31,172.12,172.1,2.1498]
[1717761080864,7.31,172.12,172.07,10.7512]
[1717761080865,2.1494,172.14,172.11,2.1497]
[1717761081038,7.31,172.12,172.11,2.1497]
[1717761081237,7.31,172.12,172.09,4.3]
[1717761081238,0.8039167,172.17,172.1,4.2997]
[1717761081439,2.1492,172.16,172.1,4.2996]
[1717761081657,7.31,172.15,172.13,2.1495]
[1717761082056,7.31,172.14,172.12,2.1496]
[1717761083885,7.31,172.13,172.12,2.1496]
[1717761084583,7.31,172.13,172.1,2.1498]
[1717761084872,7.31,172.11,172.1,2.1498]
[1717761085875,2.1494,172.14,172.1,2.1498]
[1717761086072,2.1494,172.14,172.11,2.1497]
[1717761086360,7.31,172.12,172.11,2.1497]
[1717761086761,2.1494,172.14,172.1,2.1498]
[1717761087074,7.31,172.12,172.11,2.1497]
[1717761087370,4.2984,172.16,172.11,2.1497]
[1717761087371,2.1493,172.15,172.11,2.1497]
[1717761087567,7.31,172.13,172.09,4.2999]
[1717761087758,7.31,172.12,172.09,4.2999]
[1717761088259,7.31,172.11,172.1,2.1499]
[1717761089572,7.31,172.11,172.07,10.7512]
[1717761089573,2.1493,172.15,172.11,2.1496]
[1717761089870,7.31,172.14,172.12,2.1496]
[1717761090254,2.1493,172.15,172.12,2.1496]
[1717761090255,7.31,172.13,172.12,2.1496]
[1717761090772,0.8039167,172.17,172.07,7.31]
[1717761090967,7.31,172.15,172.13,2.1495]
[1717761091469,2.9529167,172.17,172.13,2.1495]
[1717761091689,7.31,172.15,172.13,2.1495]
[1717761092281,0.8039167,172.17,172.11,4.2995]
[1717761092577,8.1139167,172.17,172.11,4.2995]
[1717761092970,7.31,172.15,172.12,2.1495]
[1717761093168,2.9529167,172.17,172.13,2.1495]
[1717761093169,0.8039167,172.17,172.13,2.1495]
[1717761093365,7.31,172.16,172.13,2.1495]
[1717761093777,0.8039167,172.17,172.14,2.1493]
[1717761093984,8.1139167,172.17,172.14,2.1493]
[1717761094786,0.8039167,172.17,172.12,4.2993]
[1717761095187,8.1139167,172.17,172.16,2.1491]
[1717761096180,0.8039167,172.17,172.13,10.3161]
[1717761096379,8.1139167,172.17,172.13,10.3161]
[1717761096680,0.8039167,172.17,172.16,2.1491]
[1717761097272,8.1139167,172.17,172.16,2.1491]
[1717761098205,0.8039167,172.17,172.16,2.1491]
[1717761099289,8.1139167,172.17,172.16,2.1491]
[1717761101787,0.8039167,172.17,172.16,2.1491]
[1717761101987,8.1139167,172.17,172.16,2.1491]
[1717761102292,0.8039167,172.17,172.16,2.1491]
[1717761102482,8.1139167,172.17,172.16,2.1491]
[1717761104697,0.8039167,172.17,172.16,2.1491]
[1717761104876,8.1139167,172.17,172.16,2.1491]
[1717761105990,0.8039167,172.17,172.16,2.1491]
[1717761106206,0.8039167,172.17,172.16,12.8948]
[1717761107304,0.8039167,172.17,172.16,34.3374]
[1717761107499,0.8039167,172.17,172.16,54.3374]
[1717761108805,0.8039167,172.17,172.16,106.6474]
[1717761109307,0.8039167,172.17,172.16,99.3374]
[1717761109608,0.8039167,172.17,172.16,54.3374]
[1717761109812,0.8039167,172.17,172.16,99.3374]
[1717761110184,0.8039167,172.17,172.16,54.3374]
[1717761111184,0.8039167,172.17,172.16,99.3374]
[1717761112800,0.8039167,172.17,172.16,106.6474]
[1717761115606,0.8039167,172.17,172.16,99.3374]
[1717761115688,0.8039167,172.17,172.16,106.6474]
[1717761118515,0.8039167,172.17,172.16,99.3374]
[1717761118730,0.8039167,172.17,172.16,106.6474]
[1717761122512,0.8039167,172.17,172.16,99.3374]
[1717761122691,0.8039167,172.17,172.16,106.6474]
[1717761123609,0.8039167,172.17,172.16,141.5074]
[1717761123610,1.67e-05,172.17,172.16,141.5074]
[1717761125495,1.67e-05,172.17,172.16,148.85715447]
[1717761127008,1.67e-05,172.17,172.16,141.54715447]
[1717761127206,1.67e-05,172.17,172.16,148.85715447]
[1717761130933,1.67e-05,172.17,172.16,141.54715447]
[1717761131140,1.67e-05,172.17,172.16,148.85715447]
[1717761131309,1.67e-05,172.17,172.16,156.16715447]
[1717761132617,1.67e-05,172.17,172.16,148.85715447]
[1717761133750,1.67e-05,172.17,172.16,156.16715447]
[1717761133903,1.67e-05,172.17,172.16,163.66396526]
[1717761134306,1.67e-05,172.17,172.16,149.04396526]
[1717761134537,1.67e-05,172.17,172.16,156.35396526]
[1717761135820,1.67e-05,172.17,172.16,162.16596526]
[1717761137104,1.67e-05,172.17,172.16,169.47596526]
[1717761137307,0.3742865,172.26,172.22,120.0]
[1717761137505,0.3742865,172.26,172.25,2.148]
[1717761137729,0.3742865,172.26,172.25,6.444]
[1717761138020,0.3742865,172.26,172.25,51.444]
[1717761140911,0.3742865,172.26,172.25,71.444]
[1717761141312,0.3742865,172.26,172.25,26.444]
[1717761143725,0.3742865,172.26,172.25,6.444]
[1717761144033,0.3742865,172.26,172.25,71.444]
[1717761145735,0.3742865,172.26,172.25,78.754]
[1717761145939,0.3742865,172.26,172.25,71.444]
[1717761147638,0.3742865,172.26,172.25,78.754]
[1717761149731,8.65e-05,172.26,172.25,113.614]
[1717761150735,8.65e-05,172.26,172.25,120.2777]
[1717761153723,8.65e-05,172.26,172.25,26.444]
[1717761154041,8.65e-05,172.26,172.25,6.444]
[1717761156018,8.65e-05,172.26,172.25,26.444]
[1717761158427,7.3100865,172.26,172.25,26.444]
[1717761160035,8.65e-05,172.26,172.25,26.444]
[1717761171139,7.3100865,172.26,172.25,26.444]
[1717761172347,8.65e-05,172.26,172.25,26.444]
[1717761172549,8.65e-05,172.26,172.25,71.444]
[1717761178337,8.65e-05,172.26,172.25,112.6814]
[1717761179759,8.65e-05,172.26,172.25,120.03115447]
[1717761180644,8.65e-05,172.26,172.25,112.6814]
[1717761182568,8.65e-05,172.26,172.25,106.304]
[1717761184067,8.65e-05,172.26,172.25,6.444]
[1717761184539,7.3100865,172.26,172.25,6.444]
[1717761185146,8.65e-05,172.26,172.25,6.444]
[1717761185343,7.3100865,172.26,172.25,6.444]
[1717761186263,8.65e-05,172.26,172.25,6.444]
[1717761186452,7.3100865,172.26,172.25,6.444]
[1717761186653,8.65e-05,172.26,172.25,6.444]
[1717761188382,7.3100865,172.26,172.25,6.444]
[1717761189141,8.65e-05,172.26,172.25,6.444]
[1717761189341,7.3100865,172.26,172.25,6.444]
[1717761191575,7.3100865,172.26,172.25,2.148]
[1717761193678,8.65e-05,172.26,172.24,2.148]
[1717761193976,7.31,172.25,172.24,2.148]
[1717761194176,7.31,172.25,172.23,2.1482]
[1717761194380,11.1525865,172.26,172.23,2.1482]
[1717761194557,33.0825865,172.26,172.23,2.1482]
[1717761194746,3.8425,172.25,172.23,2.1482]
[1717761194951,3.8425,172.25,172.24,2.1481]
[1717761195147,3.8425,172.25,172.18,10.1097]
[1717761195148,3.8425,172.23,172.18,10.1097]
[1717761195483,3.8425,172.23,172.17,2.9999833]
[1717761195484,2.1483,172.23,172.17,2.9999833]
[1717761195651,7.31,172.18,172.17,5.1489833]
[1717761197269,16.8117,172.23,172.19,2.1487]
[1717761197476,7.31,172.2,172.19,2.1487]
[1717761199168,8.65e-05,172.26,172.17,2.9999833]
[1717761199356,8.65e-05,172.26,172.25,2.148]
[1717761199548,8.65e-05,172.26,172.24,2.148]
[1717761199754,7.31,172.25,172.24,2.148]
[1717761200070,8.65e-05,172.26,172.25,2.148]
[1717761200376,7.3100865,172.26,172.25,2.148]
[1717761202170,8.65e-05,172.26,172.25,2.148]
[1717761202372,7.3100865,172.26,172.25,2.148]
[1717761202971,7.3100865,172.26,172.22,4.2967]
[1717761203280,7.31,172.25,172.24,2.148]
[1717761203649,8.65e-05,172.26,172.25,2.148]
[1717761203875,7.3100865,172.26,172.25,2.148]
[1717761204376,8.65e-05,172.26,172.25,2.148]
[1717761204712,7.3100865,172.26,172.25,2.148]
[1717761205053,8.65e-05,172.26,172.25,2.148]
[1717761205471,7.3100865,172.26,172.25,2.148]
[1717761206265,7.3100865,172.26,172.19,20.0]
[1717761206471,8.65e-05,172.26,172.24,2.148]
[1717761206664,7.31,172.25,172.24,2.148]
[1717761207693,7.31,172.25,172.19,24.2974]
[1717761207980,3.8425,172.25,172.22,2.1483]
[1717761208160,7.31,172.23,172.22,2.1483]
[1717761208975,7.31,172.23,172.18,4.2977]
[1717761209287,7.31,172.2,172.19,2.1487]
[1717761211458,7.31,172.21,172.2,2.1485]
[1717761212456,11.1525,172.21,172.18,2.1488]
[1717761212657,11.1525,172.21,172.17,2.9999833]
[1717761212658,7.31,172.19,172.17,5.1488833]
[1717761212992,7.31,172.18,172.17,5.1488833]
[1717761215485,3.8425,172.21,172.19,2.1487]
[1717761215666,7.31,172.2,172.19,2.1487]
[1717761216085,7.31,172.2,172.18,2.1488]
[1717761216292,7.31,172.19,172.18,2.1488]
[1717761216665,56.3380865,172.26,172.19,2.1487]
[1717761216861,7.31,172.22,172.19,2.1487]
[1717761217381,2.1483,172.23,172.19,2.1487]
[1717761217382,7.31,172.21,172.19,2.1487]
[1717761217568,2.1482,172.24,172.2,2.1486]
[1717761217774,7.31,172.22,172.2,2.1486]
[1717761218564,7.31,172.22,172.17,7.2978833]
[1717761218565,7.31,172.22,172.19,2.1487]
[1717761219180,7.31,172.21,172.19,2.1487]
[1717761220884,2.1482,172.23,172.19,2.1487]
[1717761221090,7.31,172.21,172.19,2.1487]
[1717761221888,7.31,172.21,172.18,2.1488]
[1717761222262,7.31,172.2,172.18,2.1488]
[1717761222899,2.1485,172.21,172.17,2.9999833]
[1717761223098,7.31,172.18,172.17,5.1488833]
[1717761223474,7.31,172.18,172.17,2.9999833]
[1717761223778,7.31,172.18,172.17,5.1489833]
[1717761224289,7.31,172.18,172.17,2.9999833]
[1717761224884,2.1484,172.22,172.17,2.9999833]
[1717761225089,7.31,172.21,172.17,2.9999833]
[1717761225689,7.31,172.2,172.17,2.9999833]
[1717761231297,7.31,172.2,172.17,5.1488833]
[1717761232901,7.31,172.2,172.18,2.1488]
[1717761233396,2.1485,172.21,172.17,5.1488833]
[1717761233592,7.31,172.2,172.17,5.1488833]
[1717761233790,9.4587,172.2,172.17,2.9999833]
[1717761233975,7.31,172.19,172.17,2.9999833]
[1717761234285,7.31,172.2,172.17,5.1488833]
[1717761234477,9.4586,172.2,172.17,5.1488833]
[1717761234892,7.31,172.2,172.17,2.9999833]
[1717761235103,9.4586,172.2,172.17,5.1489833]
[1717761235883,7.31,172.2,172.17,5.1489833]
[1717761236076,2.1486,172.21,172.18,2.1489]
[1717761236274,7.31,172.2,172.18,2.1489]
[1717761236501,7.31,172.2,172.17,2.9999833]
[1717761236502,7.31,172.2,172.17,5.1488833]
[1717761237797,9.4586,172.2,172.17,5.1488833]
[1717761237995,7.31,172.2,172.17,5.1488833]
[1717761238602,2.1485,172.21,172.17,5.1488833]
[1717761239100,7.31,172.2,172.18,2.1489]
[1717761239694,9.4585,172.21,172.18,2.1489]
[1717761240402,9.4585,172.21,172.17,5.1488833]
[1717761240700,7.31,172.2,172.18,2.1489]
[1717761241906,7.31,172.2,172.17,2.9999833]
[1717761242491,2.1485,172.21,172.17,2.9999833]
[1717761242685,7.31,172.2,172.17,2.9999833]
[1717761242999,7.31,172.2,172.17,5.1488833]
[1717761243182,7.31,172.2,172.18,2.1488]
[1717761244200,7.31,172.2,172.17,5.1488833]
[1717761244390,9.4586,172.2,172.17,5.1488833]
[1717761244700,7.31,172.2,172.17,5.1488833]
[1717761244888,7.31,172.2,172.17,2.9999833]
[1717761245903,9.4586,172.2,172.17,5.1488833]
[1717761246106,7.31,172.2,172.18,2.1489]
[1717761246290,2.1484,172.22,172.18,2.1489]
[1717761246603,2.1485,172.22,172.18,2.1489]
[1717761246809,7.31,172.21,172.18,2.1489]
[1717761246993,7.31,172.21,172.19,2.1487]
[1717761247194,9.4585,172.22,172.18,2.1487]
[1717761247410,4.2966,172.23,172.17,2.9999833]
[1717761247588,2.1485,172.21,172.17,5.1488833]
[1717761248009,2.1485,172.21,172.18,2.1488]
[1717761248201,9.4584,172.22,172.18,2.1488]
[1717761248505,2.1486,172.2,172.17,2.9999833]
[1717761248988,2.1486,172.21,172.17,5.1489833]
[1717761249188,7.31,172.2,172.17,5.1489833]
[1717761250015,9.4586,172.2,172.17,5.1489833]
[1717761250387,7.31,172.2,172.17,2.9999833]
[1717761250588,7.31,172.2,172.18,2.1488]
[1717761250789,7.31,172.21,172.18,2.1488]
[1717761251008,2.1483,172.23,172.19,2.1487]
[1717761251224,7.31,172.22,172.19,2.1487]
[1717761251508,9.4584,172.22,172.17,2.9999833]
[1717761251683,2.1485,172.21,172.17,5.1489833]
[1717761251888,9.4585,172.21,172.17,5.1489833]
[1717761252308,7.31,172.21,172.18,2.1488]
[1717761253420,2.1484,172.22,172.18,2.1488]
[1717761253924,7.31,172.2,172.17,11.1686833]
[1717761254225,2.1485,172.21,172.18,2.1489]
[1717761254518,9.4584,172.22,172.18,2.1489]
[1717761255821,9.4584,172.22,172.19,2.1487]
[1717761256348,9.4584,172.22,172.18,2.1488]
[1717761257224,9.4584,172.22,172.19,2.1487]
[1717761258505,2.1485,172.21,172.17,11.3998833]
[1717761258898,2.1485,172.21,172.18,2.1488]
[1717761259306,9.4584,172.22,172.18,2.1488]
[1717761259806,7.31,172.21,172.19,2.1487]
[1717761260209,2.1486,172.2,172.17,5.1488833]
[1717761260437,7.31,172.21,172.17,2.9999833]
[1717761260438,9.4586,172.21,172.17,2.9999833]
[1717761261013,7.31,172.19,172.17,2.9999833]
[1717761261719,2.1483,172.23,172.17,7.2978833]
[1717761261928,7.31,172.2,172.18,2.1488]
[1717761262124,2.1485,172.21,172.18,2.1488]
[1717761262324,9.4586,172.2,172.17,2.9999833]
[1717761262522,9.4586,172.2,172.17,5.1489833]
[1717761262937,7.31,172.19,172.17,5.1489833]
[1717761264720,7.31,172.19,172.17,2.9999833]
[1717761265141,9.4588,172.19,172.17,2.9999833]
[1717761265520,7.31,172.18,172.17,2.9999833]
[1717761265938,7.31,172.18,172.17,5.1489833]
[1717761266631,7.31,172.18,172.17,2.9999833]
[1717761270640,9.4589,172.18,172.17,2.9999833]
[1717761271217,7.31,172.18,172.17,2.9999833]
[1717761272614,9.4589,172.18,172.17,2.9999833]
[1717761272841,7.31,172.18,172.17,2.9999833]
[1717761273041,9.4589,172.18,172.17,2.9999833]
[1717761274540,7.31,172.18,172.17,2.9999833]
[1717761275321,9.4589,172.18,172.17,2.9999833]
[1717761275542,16.7689,172.18,172.17,2.9999833]
[1717761275732,42.9967,172.18,172.17,2.9999833]
[1717761275934,49.4434,172.18,172.17,2.9999833]
[1717761276136,94.4434,172.18,172.17,2.9999833]
[1717761276448,2.1493,172.15,172.12,2.1495]
[1717761276628,7.31,172.13,172.12,2.1495]
[1717761277221,7.31,172.13,172.1,4.2997]
[1717761277222,7.31,172.13,172.11,2.1497]
[1717761277418,7.31,172.12,172.11,2.1497]
[1717761280338,4.2978,172.19,172.11,4.2994]
[1717761280525,2.1487,172.2,172.16,2.1491]
[1717761280726,2.1486,172.21,172.17,2.149]